fUST/lending_fUST_20250727
["ID","MTS","AMOUNT","RATE_DAILY","PERIOD"]
[375204238,1753584649123,-241.51258533,0.00019452,2]
[375204239,1753584649132,-512.39,0.00019452,2]
[375204240,1753584649141,-439.0,0.00019452,2]
[375204241,1753584649151,-460.0,0.00019452,2]
[375204242,1753584649161,-720.17,0.00019452,2]
[375204243,1753584649170,-666.66,0.00019452,2]
[375204244,1753584649180,-460.0,0.00019452,2]
[375204245,1753584649189,-720.65,0.00019452,2]
[375204246,1753584649198,-460.0,0.00019452,2]
[375204247,1753584649208,-462.69739602,0.00019452,2]
[375204248,1753584649217,-460.0,0.00019452,2]
[375204249,1753584649227,-460.0,0.00019452,2]
[375204250,1753584649236,-460.0,0.00019452,2]
[375204251,1753584649246,-460.0,0.00019452,2]
[375204252,1753584649256,-460.0,0.00019452,2]
[375204253,1753584649265,-460.0,0.00019452,2]
[375204254,1753584649275,-460.0,0.00019452,2]
[375204255,1753584649285,-460.0,0.00019452,2]
[375204256,1753584649295,-460.0,0.00019452,2]
[375204257,1753584649306,-460.0,0.00019452,2]
[375204258,1753584649315,-460.0,0.00019452,2]
[375204259,1753584649325,-465.96212692,0.00019452,2]
[375204260,1753584649334,-460.0,0.00019452,2]
[375204261,1753584649343,-460.0,0.00019452,2]
[375204262,1753584649352,-460.0,0.00019452,2]
[375204263,1753584649361,-671.34,0.00019452,2]
[375204264,1753584649371,-462.12233882,0.00019452,2]
[375204265,1753584649380,-460.0,0.00019452,2]
[375204266,1753584649390,-463.07802104,0.00019452,2]
[375204267,1753584649399,-443.45177003,0.00019452,2]
[375204268,1753584649408,-460.0,0.00019452,2]
[375204269,1753584649418,-460.0,0.00019452,2]
[375204270,1753584649427,-460.0,0.00019452,2]
[375204271,1753584649436,-462.09466927,0.00019452,2]
[375204272,1753584649446,-460.0,0.00019452,2]
[375204273,1753584649456,-460.0,0.00019452,2]
[375204274,1753584649466,-462.88451609,0.00019452,2]
[375204275,1753584649475,-575.98,0.00019452,2]
[375204276,1753584649485,-460.0,0.00019452,2]
[375204277,1753584649494,-460.0,0.00019452,2]
[375204278,1753584649504,-460.0,0.00019452,2]
[375204279,1753584649514,-233.43185065,0.00019452,2]
[375204280,1753584649523,-460.0,0.00019452,2]
[375204281,1753584649533,-460.0,0.00019452,2]
[375204282,1753584649543,-460.0,0.00019452,2]
[375204283,1753584649555,-460.0,0.00019452,2]
[375204284,1753584649565,-460.0,0.00019452,2]
[375204285,1753584649578,-460.0,0.00019452,2]
[375204286,1753584649591,-351.0,0.00019509,2]
[375204287,1753584649602,-1000.0,0.00019521,2]
[375204288,1753584649611,-1000.0,0.00019521,2]
[375204289,1753584649622,-1000.0,0.00019521,2]
[375204290,1753584649633,-500.0,0.00019521,2]
[375204291,1753584649643,-500.0,0.00019521,2]
[375204292,1753584649655,-286.04626739,0.00019521,2]
[375204293,1753584649664,-1000.0,0.00019521,2]
[375204294,1753584649674,-3699.02174736,0.00019624,2]
[375204295,1753584649683,-425.0,0.00019707,2]
[375204296,1753584649691,-1000.0,0.00019721,2]
[375204297,1753584649700,-1000.0,0.00019721,2]
[375204298,1753584649710,-1000.0,0.00019721,2]
[375204299,1753584649720,-1000.0,0.00019721,2]
[375204300,1753584649730,-1000.0,0.00019721,2]
[375204301,1753584649739,-1000.0,0.00019721,2]
[375204302,1753584649749,-500.0,0.00019721,2]
[375204303,1753584649759,-1000.0,0.00019721,2]
[375204304,1753584649770,-1003.34196874,0.00019721,2]
[375204305,1753584649780,-500.0,0.00019721,2]
[375204306,1753584649790,-420.0,0.00019721,2]
[375204307,1753584649799,-182.0,0.00019721,2]
[375204308,1753584649810,-460.0,0.00019726,2]
[375204309,1753584649819,-464.73480318,0.00019726,2]
[375204310,1753584649828,-460.0,0.00019726,2]
[375204311,1753584649837,-460.0,0.00019726,2]
[375204312,1753584649847,-460.0,0.00019726,2]
[375204313,1753584649856,-460.0,0.00019726,2]
[375204314,1753584649865,-462.86072961,0.00019726,2]
[375204315,1753584649875,-460.0,0.00019726,2]
[375204316,1753584649884,-460.0,0.00019726,2]
[375204317,1753584649893,-460.0,0.00019726,2]
[375204318,1753584649903,-441.64289081,0.00019726,2]
[375204319,1753584649911,-460.0,0.00019726,2]
[375204320,1753584649920,-150.10701933,0.00019726,2]
[375204321,1753584649929,-351.12558979,0.00019726,2]
[375204322,1753584649938,-460.0,0.00019726,2]
[375204323,1753584649948,-460.0,0.00019726,2]
[375204324,1753584649957,-465.52654159,0.00019726,2]
[375204325,1753584649968,-460.0,0.00019726,2]
[375204326,1753584649979,-450.56539255,0.00019726,2]
[375204327,1753584649990,-460.0,0.00019726,2]
[375204328,1753584650000,-460.0,0.00019726,2]
[375204329,1753584650011,-460.0,0.00019726,2]
[375204330,1753584650020,-460.0,0.00019726,2]
[375204331,1753584650031,-460.0,0.00019726,2]
[375204332,1753584650040,-460.0,0.00019726,2]
[375204333,1753584650051,-460.0,0.00019726,2]
[375204334,1753584650061,-500.0,0.00019726,2]
[375204335,1753584650072,-217.11579718,0.00019726,2]
[375204336,1753584650083,-462.61295759,0.00019726,2]
[375204337,1753584650094,-460.0,0.00019726,2]
[375204338,1753584650103,-460.0,0.00019726,2]
[375204339,1753584650113,-460.0,0.00019726,2]
[375204340,1753584650123,-2270.75,0.00019726,2]
[375204341,1753584650132,-460.0,0.00019726,2]
[375204342,1753584650141,-460.0,0.00019726,2]
[375204343,1753584650150,-464.29084928,0.00019726,2]
[375204344,1753584650161,-460.0,0.00019726,2]
[375204345,1753584650170,-462.66835996,0.00019726,2]
[375204346,1753584650179,-460.0,0.00019726,2]
[375204347,1753584650189,-460.0,0.00019726,2]
[375204348,1753584650198,-460.0,0.00019726,2]
[375204349,1753584650207,-460.0,0.00019726,2]
[375204350,1753584650218,-460.0,0.00019726,2]
[375204351,1753584650227,-460.0,0.00019726,2]
[375204352,1753584650236,-544.18,0.00019726,2]
[375204353,1753584650245,-460.0,0.00019726,2]
[375204354,1753584650255,-460.0,0.00019726,2]
[375204355,1753584650266,-460.0,0.00019726,2]
[375204356,1753584650275,-1567.62,0.00019726,2]
[375204357,1753584650285,-460.0,0.00019726,2]
[375204358,1753584650295,-460.0,0.00019726,2]
[375204359,1753584650305,-460.0,0.00019726,2]
[375204360,1753584650314,-460.0,0.00019726,2]
[375204361,1753584650324,-460.0,0.00019726,2]
[375204362,1753584650333,-460.0,0.00019726,2]
[375204363,1753584650343,-462.9404674,0.00019726,2]
[375204364,1753584650353,-460.0,0.00019726,2]
[375204365,1753584650362,-460.0,0.00019726,2]
[375204366,1753584650372,-484.59,0.00019726,2]
[375204367,1753584650381,-460.0,0.00019726,2]
[375204368,1753584650390,-460.0,0.00019726,2]
[375204369,1753584650399,-460.0,0.00019726,2]
[375204370,1753584650409,-460.0,0.00019726,2]
[375204371,1753584650419,-460.0,0.00019726,2]
[375204372,1753584650428,-460.0,0.00019726,2]
[375204373,1753584650437,-460.0,0.00019726,2]
[375204374,1753584650447,-460.0,0.00019726,2]
[375204375,1753584650455,-460.0,0.00019726,2]
[375204376,1753584650465,-460.0,0.00019726,2]
[375204377,1753584650474,-460.0,0.00019726,2]
[375204378,1753584650484,-466.04290391,0.00019726,2]
[375204379,1753584650494,-460.0,0.00019726,2]
[375204380,1753584650503,-733.17,0.00019726,2]
[375204381,1753584650513,-460.0,0.00019726,2]
[375204382,1753584650523,-460.0,0.00019726,2]
[375204383,1753584650532,-463.1930634,0.00019726,2]
[375204384,1753584650542,-460.0,0.00019726,2]
[375204385,1753584650553,-460.0,0.00019726,2]
[375204386,1753584650563,-460.0,0.00019726,2]
[375204387,1753584650574,-460.0,0.00019726,2]
[375204388,1753584650584,-769.79,0.00019726,2]
[375204389,1753584650593,-460.0,0.00019726,2]
[375204390,1753584650603,-460.0,0.00019726,2]
[375204391,1753584650612,-628.61,0.00019726,2]
[375204392,1753584650622,-460.0,0.00019726,2]
[375204393,1753584650632,-460.0,0.00019726,2]
[375204394,1753584650642,-462.89445424,0.00019726,2]
[375204395,1753584650651,-460.0,0.00019726,2]
[375204396,1753584650661,-460.0,0.00019726,2]
[375204397,1753584650671,-460.0,0.00019726,2]
[375204398,1753584650681,-460.0,0.00019726,2]
[375204399,1753584650691,-460.0,0.00019726,2]
[375204400,1753584650700,-460.0,0.00019726,2]
[375204401,1753584650710,-460.0,0.00019726,2]
[375204402,1753584650719,-462.78,0.00019726,2]
[375204403,1753584650730,-460.0,0.00019726,2]
[375204404,1753584650739,-460.0,0.00019726,2]
[375204405,1753584650750,-509.52806293,0.00019726,2]
[375204406,1753584650760,-460.0,0.00019726,2]
[375204407,1753584650770,-460.0,0.00019726,2]
[375204408,1753584650779,-460.0,0.00019726,2]
[375204409,1753584650788,-460.0,0.00019726,2]
[375204410,1753584650797,-460.0,0.00019726,2]
[375204411,1753584650807,-460.0,0.00019726,2]
[375204412,1753584650816,-467.68,0.00019726,2]
[375204413,1753584650825,-460.0,0.00019726,2]
[375204414,1753584650834,-460.0,0.00019726,2]
[375204415,1753584650843,-460.0,0.00019726,2]
[375204416,1753584650853,-460.0,0.00019726,2]
[375204417,1753584650862,-1855.52,0.00019726,2]
[375204418,1753584650871,-460.0,0.00019726,2]
[375204419,1753584650881,-460.0,0.00019726,2]
[375204420,1753584650890,-460.0,0.00019726,2]
[375204421,1753584650900,-460.0,0.00019726,2]
[375204422,1753584650909,-460.0,0.00019726,2]
[375204423,1753584650919,-460.0,0.00019726,2]
[375204424,1753584650928,-460.0,0.00019726,2]
[375204425,1753584650937,-882.06,0.00019726,2]
[375204426,1753584650946,-460.0,0.00019726,2]
[375204427,1753584650956,-688.84,0.00019726,2]
[375204428,1753584650965,-374.98303447,0.00019726,2]
[375204429,1753584650975,-460.0,0.00019726,2]
[375204430,1753584650984,-463.97729485,0.00019726,2]
[375204431,1753584650993,-460.0,0.00019726,2]
[375204432,1753584651004,-460.0,0.00019726,2]
[375204433,1753584651013,-460.0,0.00019726,2]
[375204434,1753584651022,-4238.22,0.00019726,2]
[375204435,1753584651032,-460.0,0.00019726,2]
[375204436,1753584651041,-463.15510816,0.00019726,2]
[375204437,1753584651051,-462.06244568,0.00019726,2]
[375204438,1753584651060,-461.73592332,0.00019726,2]
[375204439,1753584651070,-463.01194384,0.00019726,2]
[375204440,1753584651079,-460.0,0.00019726,2]
[375204441,1753584651089,-460.0,0.00019726,2]
[375204442,1753584651099,-460.0,0.00019726,2]
[375204443,1753584651108,-460.0,0.00019726,2]
[375204444,1753584651118,-460.0,0.00019726,2]
[375204445,1753584651127,-460.0,0.00019726,2]
[375204446,1753584651136,-460.0,0.00019726,2]
[375204447,1753584651145,-460.0,0.00019726,2]
[375204448,1753584651155,-2826.79,0.00019726,2]
[375204449,1753584651164,-460.0,0.00019726,2]
[375204450,1753584651173,-460.0,0.00019726,2]
[375204451,1753584651288,-460.0,0.00019726,2]
[375204452,1753584651300,-1620.32,0.00019726,2]
[375204453,1753584651310,-460.0,0.00019726,2]
[375204454,1753584651319,-480.38,0.00019726,2]
[375204455,1753584651328,-460.0,0.00019726,2]
[375204456,1753584651338,-460.0,0.00019726,2]
[375204457,1753584651347,-2191.67,0.00019726,2]
[375204458,1753584651357,-616.59,0.00019726,2]
[375204459,1753584651366,-533.3,0.00019726,2]
[375204460,1753584651376,-460.0,0.00019726,2]
[375204461,1753584651386,-460.0,0.00019726,2]
[375204462,1753584651395,-1034.53,0.00019726,2]
[375204463,1753584651405,-460.0,0.00019726,2]
[375204464,1753584651414,-460.0,0.00019726,2]
[375204465,1753584651423,-460.0,0.00019726,2]
[375204466,1753584651432,-460.0,0.00019726,2]
[375204467,1753584651442,-460.0,0.00019726,2]
[375204468,1753584651451,-1110.96,0.00019726,2]
[375204469,1753584651460,-460.0,0.00019726,2]
[375204470,1753584651470,-460.0,0.00019726,2]
[375204471,1753584651480,-462.2915928,0.00019726,2]
[375204472,1753584651490,-460.0,0.00019726,2]
[375204473,1753584651499,-2727.04,0.00019726,2]
[375204474,1753584651510,-460.0,0.00019726,2]
[375204475,1753584651519,-460.0,0.00019726,2]
[375204476,1753584651529,-460.0,0.00019726,2]
[375204477,1753584651538,-462.18637666,0.00019726,2]
[375204478,1753584651548,-1595.2,0.00019726,2]
[375204479,1753584651557,-204.18954531,0.00019726,2]
[375204480,1753584651567,-460.0,0.00019726,2]
[375204481,1753584651580,-460.0,0.00019726,2]
[375204482,1753584651590,-393.75643284,0.00019726,2]
[375204483,1753584651599,-565.04,0.00019726,2]
[375204484,1753584651609,-460.0,0.00019726,2]
[375204485,1753584651621,-575.96,0.00019726,2]
[375204486,1753584651630,-460.0,0.00019726,2]
[375204487,1753584651640,-828.54,0.00019726,2]
[375204488,1753584651651,-460.0,0.00019726,2]
[375204489,1753584651661,-460.0,0.00019726,2]
[375204490,1753584651670,-460.0,0.00019726,2]
[375204491,1753584651680,-460.0,0.00019726,2]
[375204492,1753584651689,-1071.54,0.00019726,2]
[375204493,1753584651700,-1826.21,0.00019726,2]
[375204494,1753584651709,-469.62,0.00019726,2]
[375204495,1753584651718,-460.0,0.00019726,2]
[375204496,1753584651728,-467.30681667,0.00019726,2]
[375204497,1753584651737,-460.0,0.00019726,2]
[375204498,1753584651747,-481.95,0.00019726,2]
[375204499,1753584651758,-2416.16,0.00019726,2]
[375204500,1753584651767,-460.0,0.00019726,2]
[375204501,1753584651777,-460.0,0.00019726,2]
[375204502,1753584651786,-460.0,0.00019726,2]
[375204503,1753584651795,-460.0,0.00019726,2]
[375204504,1753584651804,-460.0,0.00019726,2]
[375204505,1753584651814,-460.0,0.00019726,2]
[375204506,1753584651824,-1641.34,0.00019726,2]
[375204507,1753584651833,-460.0,0.00019726,2]
[375204508,1753584651842,-708.09,0.00019726,2]
[375204509,1753584651851,-460.0,0.00019726,2]
[375204510,1753584651860,-460.0,0.00019726,2]
[375204511,1753584651870,-460.0,0.00019726,2]
[375204512,1753584651880,-877.28,0.00019726,2]
[375204513,1753584651889,-460.0,0.00019726,2]
[375204514,1753584651898,-737.71,0.00019726,2]
[375204515,1753584651908,-460.0,0.00019726,2]
[375204516,1753584651918,-460.0,0.00019726,2]
[375204517,1753584651927,-509.31,0.00019726,2]
[375204518,1753584651937,-460.0,0.00019726,2]
[375204519,1753584651947,-460.0,0.00019726,2]
[375204520,1753584651956,-460.0,0.00019726,2]
[375204521,1753584651966,-463.68,0.00019726,2]
[375204522,1753584651975,-2088.08,0.00019726,2]
[375204523,1753584651985,-460.0,0.00019726,2]
[375204524,1753584651995,-460.0,0.00019726,2]
[375204525,1753584652005,-1803.05,0.00019726,2]
[375204526,1753584652014,-460.0,0.00019726,2]
[375204527,1753584652024,-744.6,0.00019726,2]
[375204528,1753584652034,-460.0,0.00019726,2]
[375204529,1753584652044,-811.3,0.00019726,2]
[375204530,1753584652054,-263.97060594,0.00019726,2]
[375204531,1753584652063,-460.0,0.00019726,2]
[375204532,1753584652073,-460.0,0.00019726,2]
[375204533,1753584652083,-463.46212262,0.00019726,2]
[375204534,1753584652093,-8629.65,0.00019726,2]
[375204535,1753584652103,-460.0,0.00019726,2]
[375204536,1753584652113,-512.39,0.00019726,2]
[375204537,1753584652123,-460.0,0.00019726,2]
[375204538,1753584652132,-720.17,0.00019726,2]
[375204539,1753584652142,-666.66,0.00019726,2]
[375204540,1753584652151,-460.0,0.00019726,2]
[375204541,1753584652161,-720.65,0.00019726,2]
[375204542,1753584652170,-460.0,0.00019726,2]
[375204543,1753584652179,-460.0,0.00019726,2]
[375204544,1753584652188,-460.0,0.00019726,2]
[375204545,1753584652198,-460.0,0.00019726,2]
[375204546,1753584652207,-460.0,0.00019726,2]
[375204547,1753584652217,-460.0,0.00019726,2]
[375204548,1753584652226,-460.0,0.00019726,2]
[375204549,1753584652239,-539.34508524,0.00019726,2]
[375204550,1753584652248,-460.0,0.00019726,2]
[375204551,1753584652260,-460.0,0.00019726,2]
[375204552,1753584652271,-460.0,0.00019726,2]
[375204553,1753584652281,-460.0,0.00019726,2]
[375204554,1753584652291,-460.0,0.00019726,2]
[375204555,1753584652301,-460.0,0.00019726,2]
[375204556,1753584652311,-671.34,0.00019726,2]
[375204557,1753584652320,-460.0,0.00019726,2]
[375204558,1753584652331,-460.0,0.00019726,2]
[375204559,1753584652341,-460.0,0.00019726,2]
[375204560,1753584652351,-172.99505365,0.00019726,2]
[375204561,1753584652360,-460.0,0.00019726,2]
[375204562,1753584652370,-460.0,0.00019726,2]
[375204563,1753584652380,-575.98,0.00019726,2]
[375204564,1753584652391,-460.0,0.00019726,2]
[375204565,1753584652402,-460.0,0.00019726,2]
[375204566,1753584652411,-460.0,0.00019726,2]
[375204567,1753584652421,-460.0,0.00019726,2]
[375204568,1753584652430,-460.0,0.00019726,2]
[375204569,1753584652441,-460.0,0.00019726,2]
[375204570,1753584652451,-460.0,0.00019726,2]
[375204571,1753584652461,-460.0,0.00019726,2]
[375204572,1753584652471,-460.0,0.00019726,2]
[375204573,1753584652481,-500.0,0.00019773,2]
[375204574,1753584652492,-1680.0,0.00019818,2]
[375204575,1753584652501,-3699.02174736,0.00019866,2]
[375204576,1753584652511,-151.0,0.000199,2]
[375204577,1753584652521,-378.59037752,0.0002,2]
[375204578,1753584652531,-287.95927866,0.0002,2]
[375204579,1753584652540,-460.0,0.0002,2]
[375204580,1753584652550,-460.0,0.0002,2]
[375204581,1753584652559,-460.0,0.0002,2]
[375204582,1753584652570,-460.0,0.0002,2]
[375204583,1753584652581,-462.32479978,0.0002,2]
[375204584,1753584652591,-464.2594474,0.0002,2]
[375204585,1753584652601,-574.21007847,0.0002,2]
[375204586,1753584652610,-460.0,0.0002,2]
[375204587,1753584652620,-460.0,0.0002,2]
[375204588,1753584652630,-391.01736208,0.0002,2]
[375204589,1753584652640,-460.0,0.0002,2]
[375204590,1753584652649,-460.0,0.0002,2]
[375204591,1753584652659,-460.0,0.0002,2]
[375204592,1753584652669,-460.0,0.0002,2]
[375204593,1753584652678,-460.0,0.0002,2]
[375204594,1753584652688,-460.0,0.0002,2]
[375204595,1753584652697,-460.0,0.0002,2]
[375204596,1753584652707,-460.0,0.0002,2]
[375204597,1753584652716,-2270.75,0.0002,2]
[375204598,1753584652726,-460.0,0.0002,2]
[375204599,1753584652736,-460.0,0.0002,2]
[375204600,1753584652745,-460.0,0.0002,2]
[375204601,1753584652755,-460.0,0.0002,2]
[375204602,1753584652765,-460.0,0.0002,2]
[375204603,1753584652775,-460.0,0.0002,2]
[375204604,1753584652784,-460.0,0.0002,2]
[375204605,1753584652794,-544.18,0.0002,2]
[375204606,1753584652803,-464.17826561,0.0002,2]
[375204607,1753584652813,-460.0,0.0002,2]
[375204608,1753584652823,-460.0,0.0002,2]
[375204609,1753584652832,-1567.62,0.0002,2]
[375204610,1753584652842,-460.0,0.0002,2]
[375204611,1753584652852,-460.0,0.0002,2]
[375204612,1753584652862,-460.0,0.0002,2]
[375204613,1753584652871,-460.0,0.0002,2]
[375204614,1753584652881,-460.0,0.0002,2]
[375204615,1753584652891,-460.0,0.0002,2]
[375204616,1753584652901,-460.0,0.0002,2]
[375204617,1753584652911,-484.59,0.0002,2]
[375204618,1753584652920,-460.0,0.0002,2]
[375204619,1753584652929,-460.0,0.0002,2]
[375204620,1753584652939,-460.0,0.0002,2]
[375204621,1753584652948,-460.0,0.0002,2]
[375204622,1753584652957,-460.0,0.0002,2]
[375204623,1753584652967,-460.0,0.0002,2]
[375204624,1753584652976,-460.0,0.0002,2]
[375204625,1753584652986,-460.0,0.0002,2]
[375204626,1753584652995,-460.0,0.0002,2]
[375204627,1753584653004,-460.0,0.0002,2]
[375204628,1753584653014,-733.17,0.0002,2]
[375204629,1753584653023,-460.0,0.0002,2]
[375204630,1753584653034,-460.0,0.0002,2]
[375204631,1753584653044,-460.0,0.0002,2]
[375204632,1753584653055,-460.0,0.0002,2]
[375204633,1753584653066,-460.0,0.0002,2]
[375204634,1753584653075,-769.79,0.0002,2]
[375204635,1753584653084,-460.0,0.0002,2]
[375204636,1753584653094,-460.0,0.0002,2]
[375204637,1753584653103,-628.61,0.0002,2]
[375204638,1753584653113,-460.0,0.0002,2]
[375204639,1753584653123,-460.0,0.0002,2]
[375204640,1753584653132,-460.0,0.0002,2]
[375204641,1753584653142,-460.0,0.0002,2]
[375204642,1753584653152,-460.0,0.0002,2]
[375204643,1753584653163,-460.0,0.0002,2]
[375204644,1753584653173,-460.0,0.0002,2]
[375204645,1753584653182,-460.0,0.0002,2]
[375204646,1753584653196,-267.41374248,0.0002,2]
[375204647,1753584653206,-460.0,0.0002,2]
[375204648,1753584653215,-462.78,0.0002,2]
[375204649,1753584653226,-460.0,0.0002,2]
[375204650,1753584653235,-460.0,0.0002,2]
[375204651,1753584653244,-460.0,0.0002,2]
[375204652,1753584653253,-460.0,0.0002,2]
[375204653,1753584653264,-460.0,0.0002,2]
[375204654,1753584653274,-460.0,0.0002,2]
[375204655,1753584653284,-460.0,0.0002,2]
[375204656,1753584653293,-467.68,0.0002,2]
[375204657,1753584653303,-460.0,0.0002,2]
[375204658,1753584653312,-460.0,0.0002,2]
[375204659,1753584653322,-460.0,0.0002,2]
[375204660,1753584653331,-460.0,0.0002,2]
[375204661,1753584653341,-1855.52,0.0002,2]
[375204662,1753584653351,-460.0,0.0002,2]
[375204663,1753584653361,-502.71767957,0.0002,2]
[375204664,1753584653370,-460.0,0.0002,2]
[375204665,1753584653381,-460.0,0.0002,2]
[375204666,1753584653391,-460.0,0.0002,2]
[375204667,1753584653401,-151.0,0.0002,3]
[375204668,1753584653410,-460.0,0.0002,2]
[375204669,1753584653420,-460.0,0.0002,2]
[375204670,1753584653431,-882.06,0.0002,2]
[375204671,1753584653440,-688.84,0.0002,2]
[375204672,1753584653450,-460.0,0.0002,2]
[375204673,1753584653459,-460.0,0.0002,2]
[375204674,1753584653468,-460.0,0.0002,2]
[375204675,1753584653477,-460.0,0.0002,2]
[375204676,1753584653582,-4238.22,0.0002,2]
[375204677,1753584653593,-460.0,0.0002,2]
[375204678,1753584653603,-482.46981579,0.0002,2]
[375204679,1753584653616,-460.0,0.0002,2]
[375204680,1753584653628,-460.0,0.0002,2]
[375204681,1753584653638,-460.0,0.0002,2]
[375204682,1753584653649,-216.64508203,0.0002,2]
[375204683,1753584653661,-460.0,0.0002,2]
[375204684,1753584653671,-460.0,0.0002,2]
[375204685,1753584653681,-2826.79,0.0002,2]
[375204686,1753584653691,-460.0,0.0002,2]
[375204687,1753584653700,-460.0,0.0002,2]
[375204688,1753584653710,-460.0,0.0002,2]
[375204689,1753584653719,-460.0,0.0002,2]
[375204690,1753584653729,-1620.32,0.0002,2]
[375204691,1753584653739,-480.38,0.0002,2]
[375204692,1753584653748,-460.0,0.0002,2]
[375204693,1753584653758,-2191.67,0.0002,2]
[375204694,1753584653767,-616.59,0.0002,2]
[375204695,1753584653777,-533.3,0.0002,2]
[375204696,1753584653786,-460.0,0.0002,2]
[375204697,1753584653796,-460.0,0.0002,2]
[375204698,1753584653806,-1034.53,0.0002,2]
[375204699,1753584653815,-469.67885885,0.0002,2]
[375204700,1753584653824,-460.0,0.0002,2]
[375204701,1753584653834,-460.0,0.0002,2]
[375204702,1753584653843,-460.0,0.0002,2]
[375204703,1753584653853,-1110.96,0.0002,2]
[375204704,1753584653862,-460.0,0.0002,2]
[375204705,1753584653872,-460.0,0.0002,2]
[375204706,1753584653881,-460.0,0.0002,2]
[375204707,1753584653891,-2727.04,0.0002,2]
[375204708,1753584653901,-460.0,0.0002,2]
[375204709,1753584653910,-460.0,0.0002,2]
[375204710,1753584653919,-460.0,0.0002,2]
[375204711,1753584653929,-1595.2,0.0002,2]
[375204712,1753584653938,-460.0,0.0002,2]
[375204713,1753584653948,-565.04,0.0002,2]
[375204714,1753584653958,-460.0,0.0002,2]
[375204715,1753584653967,-575.96,0.0002,2]
[375204716,1753584653978,-460.0,0.0002,2]
[375204717,1753584653987,-828.54,0.0002,2]
[375204718,1753584653997,-460.0,0.0002,2]
[375204719,1753584654008,-460.0,0.0002,2]
[375204720,1753584654018,-460.0,0.0002,2]
[375204721,1753584654027,-460.0,0.0002,2]
[375204722,1753584654038,-1071.54,0.0002,2]
[375204723,1753584654049,-1826.21,0.0002,2]
[375204724,1753584654058,-469.62,0.0002,2]
[375204725,1753584654069,-460.0,0.0002,2]
[375204726,1753584654079,-460.0,0.0002,2]
[375204727,1753584654091,-481.95,0.0002,2]
[375204728,1753584654102,-2416.16,0.0002,2]
[375204729,1753584654113,-460.0,0.0002,2]
[375204730,1753584654124,-460.0,0.0002,2]
[375204731,1753584654134,-460.0,0.0002,2]
[375204732,1753584654143,-460.0,0.0002,2]
[375204733,1753584654153,-460.0,0.0002,2]
[375204734,1753584654163,-1641.34,0.0002,2]
[375204735,1753584654172,-460.0,0.0002,2]
[375204736,1753584654182,-708.09,0.0002,2]
[375204737,1753584654192,-460.0,0.0002,2]